{"text_format":"3","workbook":"xlsx","n_sheets":1,"sheets":["KontantstrømUtskrift"],"not_rendered":{"defined_names":1},"read":"whole","date_system":"1900"}

{"sheet":"KontantstrømUtskrift","index":0,"n_rows":50,"n_cols":18,"rows_kept":50,"merged":[[15,1,15,18],[39,1,39,18],[48,1,48,18]]}
[null,"Kontantstrøm Kontoutdrag"]
[]
[null,"Regnskapsåret begynner:",null,"(Før) Oppstart",{"$f":"UPPER(TEXT(RegnskapsårStartDato,\"mmm\"))","v":"JAN"},{"$f":"UPPER(TEXT(EOMONTH(RegnskapsårStartDato,1),\"mmm\"))","v":"FEB"},{"$f":"UPPER(TEXT(EOMONTH(RegnskapsårStartDato,2),\"mmm\"))","v":"MAR"},{"$f":"UPPER(TEXT(EOMONTH(RegnskapsårStartDato,3),\"mmm\"))","v":"APR"},{"$f":"UPPER(TEXT(EOMONTH(RegnskapsårStartDato,4),\"mmm\"))","v":"MAI"},{"$f":"UPPER(TEXT(EOMONTH(RegnskapsårStartDato,5),\"mmm\"))","v":"JUN"},{"$f":"UPPER(TEXT(EOMONTH(RegnskapsårStartDato,6),\"mmm\"))","v":"JUL"},{"$f":"UPPER(TEXT(EOMONTH(RegnskapsårStartDato,7),\"mmm\"))","v":"AUG"},{"$f":"UPPER(TEXT(EOMONTH(RegnskapsårStartDato,8),\"mmm\"))","v":"SEP"},{"$f":"UPPER(TEXT(EOMONTH(RegnskapsårStartDato,9),\"mmm\"))","v":"OKT"},{"$f":"UPPER(TEXT(EOMONTH(RegnskapsårStartDato,10),\"mmm\"))","v":"NOV"},{"$f":"UPPER(TEXT(EOMONTH(RegnskapsårStartDato,11),\"mmm\"))","v":"DES"},null,"Totalt"]
[null,"2012-01-05",null,"EST",{"$f":"RegnskapsårStartDato","v":"2012-01-05"},{"$f":"EOMONTH(E4,0)+DAY(RegnskapsårStartDato)","v":"2012-02-05"},{"$f":"EOMONTH(F4,0)+DAY(RegnskapsårStartDato)","v":"2012-03-05"},{"$f":"EOMONTH(G4,0)+DAY(RegnskapsårStartDato)","v":"2012-04-05"},{"$f":"EOMONTH(H4,0)+DAY(RegnskapsårStartDato)","v":"2012-05-05"},{"$f":"EOMONTH(I4,0)+DAY(RegnskapsårStartDato)","v":"2012-06-05"},{"$f":"EOMONTH(J4,0)+DAY(RegnskapsårStartDato)","v":"2012-07-05"},{"$f":"EOMONTH(K4,0)+DAY(RegnskapsårStartDato)","v":"2012-08-05"},{"$f":"EOMONTH(L4,0)+DAY(RegnskapsårStartDato)","v":"2012-09-05"},{"$f":"EOMONTH(M4,0)+DAY(RegnskapsårStartDato)","v":"2012-10-05"},{"$f":"EOMONTH(N4,0)+DAY(RegnskapsårStartDato)","v":"2012-11-05"},{"$f":"EOMONTH(O4,0)+DAY(RegnskapsårStartDato)","v":"2012-12-05"},null,"Artikkel-EST"]
[]
[null,"Tilgjengelige kontanter (start på måned)",null,100,{"$f":"D50","v":100},{"$f":"E50","v":-125},45,-1,224,269,269,269,269,269,269,269,null,{"$f":"P6","v":269}]
[]
[null,"Kontantinnbetalinger"]
[]
[null,"Kontantsalg",null,null,125,120,130,100,{"$nulls":9},{"$f":"SUM(Kontantinnbetalinger[[#This Row],[Periode 0]:[Periode 12]])","v":475}]
[null,"Innsamlinger fra CR-kontoer",{"$nulls":5},75,45,{"$nulls":8},{"$f":"SUM(Kontantinnbetalinger[[#This Row],[Periode 0]:[Periode 12]])","v":120}]
[null,"Lån/ annen kontantinng.",null,null,50,50,50,50,{"$nulls":9},{"$f":"SUM(Kontantinnbetalinger[[#This Row],[Periode 0]:[Periode 12]])","v":200}]
[{"$nulls":17},{"$f":"SUM(Kontantinnbetalinger[[#This Row],[Periode 0]:[Periode 12]])","v":0}]
[null,"Totalt",null,{"$f":"SUBTOTAL(109,Kontantinnbetalinger[Periode 0])","v":0},{"$f":"SUBTOTAL(109,Kontantinnbetalinger[Periode 1])","v":175},{"$f":"SUBTOTAL(109,Kontantinnbetalinger[Periode 2])","v":170},{"$f":"SUBTOTAL(109,Kontantinnbetalinger[Periode 3])","v":180},{"$f":"SUBTOTAL(109,Kontantinnbetalinger[Periode 4])","v":225},{"$f":"SUBTOTAL(109,Kontantinnbetalinger[Periode 5])","v":45},{"$f":"SUBTOTAL(109,Kontantinnbetalinger[Periode 6])","v":0},{"$f":"SUBTOTAL(109,Kontantinnbetalinger[Periode 7])","v":0},{"$f":"SUBTOTAL(109,Kontantinnbetalinger[Periode 8])","v":0},{"$f":"SUBTOTAL(109,Kontantinnbetalinger[Periode 9])","v":0},{"$f":"SUBTOTAL(109,Kontantinnbetalinger[Periode 10])","v":0},{"$f":"SUBTOTAL(109,Kontantinnbetalinger[Periode 11])","v":0},{"$f":"SUBTOTAL(109,Kontantinnbetalinger[Periode 12])","v":0},null,{"$f":"SUBTOTAL(109,Kontantinnbetalinger[Totalt])","v":795}]
[null,"Kontanter tilgjengelig totalt (før utbetaling)",null,{"$f":"D6+SUM(Kontantinnbetalinger[Periode 0])","v":100},{"$f":"E6+SUM(Kontantinnbetalinger[Periode 1])","v":275},{"$f":"F6+SUM(Kontantinnbetalinger[Periode 2])","v":45},{"$f":"G6+SUM(Kontantinnbetalinger[Periode 3])","v":225},{"$f":"H6+SUM(Kontantinnbetalinger[Periode 4])","v":224},{"$f":"I6+SUM(Kontantinnbetalinger[Periode 5])","v":269},{"$f":"J6+SUM(Kontantinnbetalinger[Periode 6])","v":269},{"$f":"K6+SUM(Kontantinnbetalinger[Periode 7])","v":269},{"$f":"L6+SUM(Kontantinnbetalinger[Periode 8])","v":269},{"$f":"M6+SUM(Kontantinnbetalinger[Periode 9])","v":269},{"$f":"N6+SUM(Kontantinnbetalinger[Periode 10])","v":269},{"$f":"O6+SUM(Kontantinnbetalinger[Periode 11])","v":269},{"$f":"P6+SUM(Kontantinnbetalinger[Periode 12])","v":269},null,{"$f":"R6+SUM(Kontantinnbetalinger[Totalt])","v":1064}]
[]
[null,"Kontantutbetalinger"]
[null,"Innkjøp (varer)",null,null,400,null,226,{"$nulls":10},{"$f":"SUM(KontanterUtbetalt[[#This Row],[Periode 0]:[Periode 12]])","v":626}]
[null,"Innkjøp (angi)",{"$nulls":15},{"$f":"SUM(KontanterUtbetalt[[#This Row],[Periode 0]:[Periode 12]])","v":0}]
[null,"Innkjøp (angi)",{"$nulls":15},{"$f":"SUM(KontanterUtbetalt[[#This Row],[Periode 0]:[Periode 12]])","v":0}]
[null,"Bruttolønninger (nøyaktig uttak)",{"$nulls":15},{"$f":"SUM(KontanterUtbetalt[[#This Row],[Periode 0]:[Periode 12]])","v":0}]
[null,"Lønnsutgifter (skatt osv.)",{"$nulls":15},{"$f":"SUM(KontanterUtbetalt[[#This Row],[Periode 0]:[Periode 12]])","v":0}]
[null,"Eksterne tjenester",{"$nulls":15},{"$f":"SUM(KontanterUtbetalt[[#This Row],[Periode 0]:[Periode 12]])","v":0}]
[null,"Rekvisita (kontor og drift)",{"$nulls":15},{"$f":"SUM(KontanterUtbetalt[[#This Row],[Periode 0]:[Periode 12]])","v":0}]
[null,"Reparasjon og vedlikehold",{"$nulls":15},{"$f":"SUM(KontanterUtbetalt[[#This Row],[Periode 0]:[Periode 12]])","v":0}]
[null,"Annonsering",{"$nulls":15},{"$f":"SUM(KontanterUtbetalt[[#This Row],[Periode 0]:[Periode 12]])","v":0}]
[null,"Bil, levering og reise",{"$nulls":15},{"$f":"SUM(KontanterUtbetalt[[#This Row],[Periode 0]:[Periode 12]])","v":0}]
[null,"Regnskap og juridisk",{"$nulls":15},{"$f":"SUM(KontanterUtbetalt[[#This Row],[Periode 0]:[Periode 12]])","v":0}]
[null,"Leie",{"$nulls":15},{"$f":"SUM(KontanterUtbetalt[[#This Row],[Periode 0]:[Periode 12]])","v":0}]
[null,"Telefon",{"$nulls":15},{"$f":"SUM(KontanterUtbetalt[[#This Row],[Periode 0]:[Periode 12]])","v":0}]
[null,"Tjenester",{"$nulls":15},{"$f":"SUM(KontanterUtbetalt[[#This Row],[Periode 0]:[Periode 12]])","v":0}]
[null,"Forsikring",{"$nulls":15},{"$f":"SUM(KontanterUtbetalt[[#This Row],[Periode 0]:[Periode 12]])","v":0}]
[null,"Avgifter (eiendom og så videre)",{"$nulls":15},{"$f":"SUM(KontanterUtbetalt[[#This Row],[Periode 0]:[Periode 12]])","v":0}]
[null,"Renter",{"$nulls":15},{"$f":"SUM(KontanterUtbetalt[[#This Row],[Periode 0]:[Periode 12]])","v":0}]
[null,"Andre utgifter (angi)",{"$nulls":15},{"$f":"SUM(KontanterUtbetalt[[#This Row],[Periode 0]:[Periode 12]])","v":0}]
[null,"Annet (angi)",{"$nulls":15},{"$f":"SUM(KontanterUtbetalt[[#This Row],[Periode 0]:[Periode 12]])","v":0}]
[null,"Annet (angi)",{"$nulls":15},{"$f":"SUM(KontanterUtbetalt[[#This Row],[Periode 0]:[Periode 12]])","v":0}]
[null,"Diverse",{"$nulls":15},{"$f":"SUM(KontanterUtbetalt[[#This Row],[Periode 0]:[Periode 12]])","v":0}]
[null,"Totalt",null,{"$f":"SUBTOTAL(109,KontanterUtbetalt[Periode 0])","v":0},{"$f":"SUBTOTAL(109,KontanterUtbetalt[Periode 1])","v":400},{"$f":"SUBTOTAL(109,KontanterUtbetalt[Periode 2])","v":0},{"$f":"SUBTOTAL(109,KontanterUtbetalt[Periode 3])","v":226},{"$f":"SUBTOTAL(109,KontanterUtbetalt[Periode 4])","v":0},{"$f":"SUBTOTAL(109,KontanterUtbetalt[Periode 5])","v":0},{"$f":"SUBTOTAL(109,KontanterUtbetalt[Periode 6])","v":0},{"$f":"SUBTOTAL(109,KontanterUtbetalt[Periode 7])","v":0},{"$f":"SUBTOTAL(109,KontanterUtbetalt[Periode 8])","v":0},{"$f":"SUBTOTAL(109,KontanterUtbetalt[Periode 9])","v":0},{"$f":"SUBTOTAL(109,KontanterUtbetalt[Periode 10])","v":0},{"$f":"SUBTOTAL(109,KontanterUtbetalt[Periode 11])","v":0},{"$f":"SUBTOTAL(109,KontanterUtbetalt[Periode 12])","v":0},null,{"$f":"SUBTOTAL(109,KontanterUtbetalt[Totalt])","v":626}]
[]
[null,"Kontantutbetalinger (ikke P&L)"]
[null,"Avdrag på lån",{"$nulls":15},{"$f":"SUM(KontanterUtbetalt2[[#This Row],[Periode 0]:[Periode 12]])","v":0}]
[null,"Kapitalkjøp (angi)",{"$nulls":15},{"$f":"SUM(KontanterUtbetalt2[[#This Row],[Periode 0]:[Periode 12]])","v":0}]
[null,"Andre oppstartskostnader",{"$nulls":15},{"$f":"SUM(KontanterUtbetalt2[[#This Row],[Periode 0]:[Periode 12]])","v":0}]
[null,"Reserve og/eller deponering",{"$nulls":15},{"$f":"SUM(KontanterUtbetalt2[[#This Row],[Periode 0]:[Periode 12]])","v":0}]
[null,"Eiers kontantuttak",{"$nulls":15},{"$f":"SUM(KontanterUtbetalt2[[#This Row],[Periode 0]:[Periode 12]])","v":0}]
[null,"Totalt",null,{"$f":"SUBTOTAL(109,KontanterUtbetalt2[Periode 0])","v":0},{"$f":"SUBTOTAL(109,KontanterUtbetalt2[Periode 1])","v":0},{"$f":"SUBTOTAL(109,KontanterUtbetalt2[Periode 2])","v":0},{"$f":"SUBTOTAL(109,KontanterUtbetalt2[Periode 3])","v":0},{"$f":"SUBTOTAL(109,KontanterUtbetalt2[Periode 4])","v":0},{"$f":"SUBTOTAL(109,KontanterUtbetalt2[Periode 5])","v":0},{"$f":"SUBTOTAL(109,KontanterUtbetalt2[Periode 6])","v":0},{"$f":"SUBTOTAL(109,KontanterUtbetalt2[Periode 7])","v":0},{"$f":"SUBTOTAL(109,KontanterUtbetalt2[Periode 8])","v":0},{"$f":"SUBTOTAL(109,KontanterUtbetalt2[Periode 9])","v":0},{"$f":"SUBTOTAL(109,KontanterUtbetalt2[Periode 10])","v":0},{"$f":"SUBTOTAL(109,KontanterUtbetalt2[Periode 11])","v":0},{"$f":"SUBTOTAL(109,KontanterUtbetalt2[Periode 12])","v":0},null,{"$f":"SUBTOTAL(109,KontanterUtbetalt2[Totalt])","v":0}]
[null,"Kontantutbetalinger totalt",null,{"$f":"SUM(KontanterUtbetalt[Periode 0],KontanterUtbetalt2[Periode 0])","v":0},{"$f":"SUM(KontanterUtbetalt[Periode 1],KontanterUtbetalt2[Periode 1])","v":400},{"$f":"SUM(KontanterUtbetalt[Periode 2],KontanterUtbetalt2[Periode 2])","v":0},{"$f":"SUM(KontanterUtbetalt[Periode 3],KontanterUtbetalt2[Periode 3])","v":226},{"$f":"SUM(KontanterUtbetalt[Periode 4],KontanterUtbetalt2[Periode 4])","v":0},{"$f":"SUM(KontanterUtbetalt[Periode 5],KontanterUtbetalt2[Periode 5])","v":0},{"$f":"SUM(KontanterUtbetalt[Periode 6],KontanterUtbetalt2[Periode 6])","v":0},{"$f":"SUM(KontanterUtbetalt[Periode 7],KontanterUtbetalt2[Periode 7])","v":0},{"$f":"SUM(KontanterUtbetalt[Periode 8],KontanterUtbetalt2[Periode 8])","v":0},{"$f":"SUM(KontanterUtbetalt[Periode 9],KontanterUtbetalt2[Periode 9])","v":0},{"$f":"SUM(KontanterUtbetalt[Periode 10],KontanterUtbetalt2[Periode 10])","v":0},{"$f":"SUM(KontanterUtbetalt[Periode 11],KontanterUtbetalt2[Periode 11])","v":0},{"$f":"SUM(KontanterUtbetalt[Periode 12],KontanterUtbetalt2[Periode 12])","v":0},null,{"$f":"SUM(KontanterUtbetalt[Totalt],KontanterUtbetalt2[Totalt])","v":626}]
[]
[null,"Kontantbeholdning (månedslutt)",null,{"$f":"D15-D48","v":100},-125,45,-1,224,269,269,269,269,269,269,269,269,null,{"$f":"R15-R48","v":438}]